fUSD/lending_fUSD_20260404
["ID","MTS","AMOUNT","RATE_DAILY","PERIOD"]
[419685187,1775280708769,-694.19,0.00036383,9]
[419685188,1775280708779,-13734.68,0.00036383,9]
[419685189,1775280708789,-500.0,0.00036383,9]
[419685190,1775280708798,-810.03,0.00036383,9]
[419685191,1775280708808,-500.0,0.00036383,9]
[419685192,1775280708818,-500.0,0.00036383,9]
[419685193,1775280708827,-907.86,0.00036383,9]
[419685194,1775280708836,-500.0,0.00036383,9]
[419685195,1775280708846,-1590.77,0.00036383,9]
[419685196,1775280708855,-3684.53,0.00036383,9]
[419685197,1775280708865,-2383.6,0.00036383,9]
[419685198,1775280708874,-500.0,0.00036383,9]
[419685199,1775280708884,-500.0,0.00036383,9]
[419685200,1775280708894,-500.0,0.00036383,9]
[419685201,1775280708903,-851.14,0.00036383,9]
[419685202,1775280708912,-605.57195956,0.00036383,9]
[419685203,1775280708922,-500.0,0.00036383,9]
[419685204,1775280708932,-1104.72,0.00036383,9]
[419685205,1775280708942,-500.0,0.00036383,9]
[419685206,1775280708951,-500.0,0.00036383,9]
[419685207,1775280708960,-914.08,0.00036383,9]
[419685208,1775280708970,-500.0,0.00036383,9]
[419685209,1775280708980,-500.0,0.00036383,9]
[419685210,1775280708989,-1858.66,0.00036383,9]
[419685211,1775280708999,-500.0,0.00036383,9]
[419685212,1775280709008,-514.88,0.00036383,9]
[419685213,1775280709018,-500.0,0.00036383,9]
[419685214,1775280709027,-1126.74,0.00036383,9]
[419685215,1775280709036,-2761.74,0.00036383,9]
[419685216,1775280709045,-504.82,0.00036383,9]
[419685217,1775280709054,-2760.69,0.00036383,9]
[419685218,1775280709064,-783.55,0.00036383,9]
[419685219,1775280709073,-552.62,0.00036383,9]
[419685220,1775280709083,-500.0,0.00036383,9]
[419685221,1775280709092,-3664.3,0.00036383,2]
[419685222,1775280709101,-630.24,0.00036383,9]
[419685223,1775280709179,-1955.54,0.00036383,9]
[419685224,1775280709190,-500.0,0.00036383,9]
[419685225,1775280709200,-2075.53,0.00036383,9]
[419685226,1775280709210,-2874.35,0.00036383,9]
[419685227,1775280709221,-1052.25,0.00036383,9]
[419685228,1775280709230,-500.0,0.00036383,9]
[419685229,1775280709240,-1493.22,0.00036383,9]
[419685230,1775280709249,-1053.01,0.00036383,9]
[419685231,1775280709258,-1613.95,0.00036383,9]
[419685232,1775280709270,-1210.79,0.00036383,9]
[419685233,1775280709279,-500.0,0.00036383,9]
[419685234,1775280709289,-670.88,0.00036383,9]
[419685235,1775280709299,-500.0,0.00036383,9]
[419685236,1775280709310,-500.0,0.00036383,9]
[419685237,1775280709322,-500.0,0.00036383,9]
[419685238,1775280709333,-1547.37,0.00036383,9]
[419685239,1775280709343,-564.36,0.00036383,9]
[419685240,1775280709353,-1462.79,0.00036383,9]
[419685241,1775280709361,-867.55,0.00036383,7]
[419685242,1775280709370,-500.0,0.00036383,9]
[419685243,1775280709380,-500.0,0.00036383,9]
[419685244,1775280709389,-1034.95,0.00036383,9]
[419685245,1775280709401,-1397.46,0.00036383,9]
[419685246,1775280709412,-1347.98,0.00036383,9]
[419685247,1775280709421,-1120.58,0.00036383,9]
[419685248,1775280709431,-500.0,0.00036383,9]
[419685249,1775280709440,-2259.23,0.00036383,9]
[419685250,1775280709449,-500.0,0.00036383,9]
[419685251,1775280709458,-500.0,0.00036383,9]
[419685252,1775280709467,-1227.05,0.00036383,9]
[419685253,1775280709477,-2454.96,0.00036383,9]
[419685254,1775280709488,-582.1121772,0.00036383,9]
[419685255,1775280709497,-1562.54,0.00036383,9]
[419685256,1775280709507,-1023.0,0.00036383,9]
[419685257,1775280709517,-766.51,0.00036383,9]
[419685258,1775280709527,-1251.23,0.00036383,9]
[419685259,1775280709537,-2177.44,0.00036383,9]
[419685260,1775280709547,-1865.55,0.00036383,9]
[419685261,1775280709556,-1190.3,0.00036383,9]
[419685262,1775280709566,-1080.7,0.00036383,9]
[419685263,1775280709575,-500.0,0.00036383,9]
[419685264,1775280709585,-500.0,0.00036383,9]
[419685265,1775280709594,-500.0,0.00036383,9]
[419685266,1775280709604,-1376.41,0.00036383,9]
[419685267,1775280709613,-2974.27,0.00036383,9]
[419685268,1775280709623,-2287.39,0.00036383,9]
[419685269,1775280709632,-500.0,0.00036383,9]
[419685270,1775280709642,-1119.73,0.00036383,9]
[419685271,1775280709652,-500.0,0.00036383,9]
[419685272,1775280709661,-500.0,0.00036383,9]
[419685273,1775280709671,-1143.8,0.00036383,9]
[419685274,1775280709680,-1176.55,0.00036383,9]
[419685275,1775280709689,-500.0,0.00036383,9]
[419685276,1775280709698,-653.2,0.00036383,9]
[419685277,1775280709708,-500.0,0.00036383,9]
[419685278,1775280709717,-2370.68,0.00036383,9]
[419685279,1775280709726,-500.0,0.00036383,9]
[419685280,1775280709735,-500.0,0.00036383,9]
[419685281,1775280709745,-500.0,0.00036383,9]
[419685282,1775280709754,-1291.04,0.00036383,9]
[419685283,1775280709765,-1718.88,0.00036383,9]
[419685284,1775280709774,-1454.11,0.00036383,9]
[419685285,1775280709784,-500.0,0.00036383,9]
[419685286,1775280709795,-500.0,0.00036383,9]
[419685287,1775280709805,-500.0,0.00036383,9]
[419685288,1775280709814,-500.0,0.00036383,9]
[419685289,1775280709823,-850.48,0.00036383,9]
[419685290,1775280709833,-500.0,0.00036383,9]
[419685291,1775280709843,-550.93,0.00036383,9]
[419685292,1775280709853,-977.71,0.00036383,9]
[419685293,1775280709863,-511.3554598,0.00036383,9]
[419685294,1775280709872,-500.0,0.00036383,9]
[419685295,1775280709882,-500.0,0.00036383,9]
[419685296,1775280709892,-500.0,0.00036383,9]
[419685297,1775280709902,-500.0,0.00036383,30]
[419685298,1775280709911,-599.39,0.00036383,9]
[419685299,1775280709922,-3648.36,0.00036383,9]
[419685300,1775280709931,-500.0,0.00036383,9]
[419685301,1775280709941,-1742.98,0.00036383,9]
[419685302,1775280709950,-500.0,0.00036383,9]
[419685303,1775280709960,-500.0,0.00036383,9]
[419685304,1775280709969,-500.0,0.00036383,9]
[419685305,1775280709979,-1376.23,0.00036383,9]
[419685306,1775280709990,-658.95,0.00036383,9]
[419685307,1775280709999,-1603.45,0.00036383,9]
[419685308,1775280710009,-1214.7,0.00036383,9]
[419685309,1775280710019,-888.32,0.00036383,9]
[419685310,1775280710028,-500.0,0.00036383,9]
[419685311,1775280710038,-636.64,0.00036383,9]
[419685312,1775280710047,-500.0,0.00036383,9]
[419685313,1775280710056,-1272.26,0.00036383,9]
[419685314,1775280710066,-1899.03,0.00036383,9]
[419685315,1775280710075,-1529.48,0.00036383,9]
[419685316,1775280710085,-500.0,0.00036383,9]
[419685317,1775280710095,-500.0,0.00036383,9]
[419685318,1775280710105,-4974.5,0.00036383,9]
[419685319,1775280710114,-440.03319174,0.00036383,9]
[419685320,1775280710627,-59.96680826,0.00036383,9]
[419685321,1775280710638,-439.43854346,0.00036383,9]
[419685322,1775280711398,-500.0,9.455e-05,2]
[419685323,1775280711409,-500.0,9.455e-05,2]
[419685324,1775280711418,-500.0,9.455e-05,2]
[419685325,1775280711428,-181.73847098,9.455e-05,2]
[419685326,1775280711438,-500.0,9.455e-05,2]
[419685327,1775280711447,-500.0,9.455e-05,2]
[419685328,1775280711458,-446.147223,0.00035616,9]
[419685329,1775280711471,-372.572777,0.00035616,9]
[419685330,1775280711481,-290.357223,0.00035726,9]
[419685331,1775280711945,-6019.0,0.00019953,2]
[419685332,1775280711954,-3265.02007883,0.00022953,2]
[419685333,1775280712918,-2753.97992117,0.00022953,2]
[419685334,1775280712928,-6019.0,0.00025953,2]
[419685335,1775280712937,-3794.12737883,0.00028953,2]
[419685336,1775280712948,-251.53,0.00028953,2]
[419685337,1775280713009,-283.2487028,0.00028953,2]
[419685339,1775280939104,-182.82419012,8.504e-05,2]
[419685340,1775280939133,-500.0,8.504e-05,2]
[419685341,1775280939172,-500.0,8.504e-05,2]
[419685342,1775280939204,-500.0,8.504e-05,2]
[419685343,1775280939239,-141.65510988,8.504e-05,2]
[419685344,1775280939264,-284.26328503,8.504e-05,2]
[419685345,1775280939296,-151.0,8.504e-05,2]
[419685346,1775280939366,-151.0,8.504e-05,2]
[419685347,1775280939456,-500.0,8.504e-05,2]
[419685348,1775280939543,-121.16391497,8.504e-05,2]
[419685351,1775281400851,188.029505,0.00016101,120]
[419685352,1775281434020,-250.0,9.196e-05,2]
[419685353,1775281495693,171.56,9.112e-05,2]
[419685354,1775281547126,-170.13677936,9.624e-05,2]
[419685355,1775281551042,500.0,9.096e-05,2]
[419685356,1775281652086,-79.86322064,9.624e-05,2]
[419685357,1775281652107,-300.0,9.736e-05,2]
[419685358,1775281652127,-8313.75597616,9.737e-05,2]
[419685360,1775281734368,-300.0,9.736e-05,2]
[419685361,1775281734397,-300.0,9.736e-05,2]
[419685362,1775281734426,-300.0,9.736e-05,2]
[419685363,1775281737336,1200.0,9.736e-05,2]
[419685364,1775281741916,300.0,9.736e-05,2]
[419685365,1775281831520,-250.0,9.736e-05,2]
[419685366,1775281831530,-168.22875261,0.00010487,2]
[419685367,1775281831540,-1200.0,0.00010586,2]
[419685368,1775281831549,-300.0,0.00010586,2]
[419685369,1775281831561,-447.41796119,0.00010587,2]
[419685370,1775281831785,-1747.39064861,0.00010587,2]
[419685371,1775281831817,-10287.30045066,0.00010587,2]
[419685372,1775281831826,-5000.0,0.00010587,2]
[419685374,1775281831836,-521.35022304,0.00010614,2]
[419685375,1775281831845,-250.0,0.0001071,2]
[419685377,1775281831855,-420.0,0.0001071,2]
[419685378,1775281831864,-250.0,0.0001071,2]
[419685379,1775281831873,-150.0,0.000109,2]
[419685380,1775281831884,-1500.0,0.0001096,2]
[419685381,1775281831894,-1852.42,0.00011129,2]
[419685382,1775281831903,-2000.0,0.00011328,2]
[419685383,1775281831914,-4361.13,0.00011374,2]
[419685384,1775281831925,-168.22875261,0.00011594,2]
[419685385,1775281831934,-385.84390098,0.000116,2]
[419685386,1775281831943,-790.0,0.00011639,2]
[419685387,1775281831954,-1200.0,0.00011644,2]
[419685388,1775281831963,-1658.0,0.00011662,2]
[419685389,1775281831972,-150.0,0.00011683,2]
[419685390,1775281831981,-1000.0,0.00011683,2]
[419685391,1775281831991,-14506.14244163,0.00011684,2]
[419685392,1775281832001,-9231.95,0.00011694,2]
[419685393,1775281832010,-1570.92,0.00011694,2]
[419685394,1775281832021,-299.99,0.00011694,2]
[419685395,1775281832030,-9999.99,0.00011694,2]
[419685396,1775281832039,-999.99,0.00011694,2]
[419685397,1775281832049,-20895.09,0.00011694,2]
[419685398,1775281832058,-150.99,0.00011694,2]
[419685399,1775281832068,-1569.88,0.000117,2]
[419685400,1775281832077,-9999.99,0.000117,2]
[419685401,1775281832087,-178.27,0.000117,2]
[419685402,1775281832096,-6650.3,0.000117,2]
[419685403,1775281832106,-9999.99,0.000117,2]
[419685404,1775281832115,-150.99,0.000117,2]
[419685405,1775281832124,-343.0,0.00011781,2]
[419685406,1775281832133,-151.0,0.00011822,2]
[419685407,1775281832143,-26303.3713258,0.00011907,2]
[419685408,1775281832152,-1327.44020132,0.0001193,2]
[419685409,1775281832161,-500.0,0.00011983,2]
[419685410,1775281832171,-500.0,0.00011983,2]
[419685411,1775281832179,-500.0,0.00011983,2]
[419685412,1775281832189,-500.0,0.00011983,2]
[419685413,1775281832198,-500.0,0.00011983,2]
[419685414,1775281832207,-500.0,0.00011983,2]
[419685415,1775281832217,-500.0,0.00011983,2]
[419685416,1775281832226,-500.0,0.00011983,2]
[419685417,1775281832235,-500.0,0.00011983,2]
[419685418,1775281832245,-500.0,0.00011983,2]
[419685419,1775281832254,-151.0,0.00011983,2]
[419685420,1775281832265,-500.0,0.00011983,2]
[419685421,1775281832274,-151.0,0.00011983,2]
[419685422,1775281832283,-151.0,0.00011983,2]
[419685423,1775281832293,-151.0,0.00011983,2]
[419685424,1775281832302,-151.0,0.00011983,2]
[419685425,1775281832311,-151.0,0.00011983,2]
[419685426,1775281832320,-500.0,0.00011983,2]
[419685427,1775281832330,-500.0,0.00011983,2]
[419685428,1775281832339,-151.0,0.00011983,2]
[419685429,1775281832349,-500.0,0.00011983,2]
[419685430,1775281832359,-151.0,0.00011983,2]
[419685431,1775281832369,-500.0,0.00011983,2]
[419685432,1775281832378,-151.0,0.00011983,2]
[419685433,1775281832388,-500.0,0.00011983,2]
[419685434,1775281832397,-151.0,0.00011983,2]
[419685435,1775281832406,-500.0,0.00011983,2]
[419685436,1775281832415,-151.0,0.00011983,2]
[419685437,1775281832425,-151.0,0.00011983,2]
[419685438,1775281832434,-177.58747287,0.00011983,2]
[419685439,1775281832443,-151.0,0.00011983,2]
[419685440,1775281832452,-151.0,0.00011983,2]
[419685441,1775281832462,-151.0,0.00011983,2]
[419685442,1775281832471,-151.0,0.00011983,2]
[419685443,1775281832480,-151.0,0.00011983,2]
[419685444,1775281832489,-151.0,0.00011983,2]
[419685445,1775281832499,-151.0,0.00011983,2]
[419685446,1775281832508,-151.0,0.00011983,2]
[419685447,1775281832517,-151.0,0.00011983,2]
[419685448,1775281832526,-151.0,0.00011983,2]
[419685449,1775281832535,-151.0,0.00011983,2]
[419685450,1775281832544,-151.0,0.00011983,2]
[419685451,1775281832554,-151.0,0.00011983,2]
[419685452,1775281832563,-151.0,0.00011983,2]
[419685453,1775281832572,-151.0,0.00011983,2]
[419685454,1775281832581,-151.0,0.00011983,2]
[419685455,1775281832590,-151.0,0.00011983,2]
[419685456,1775281832600,-151.0,0.00011983,2]
[419685457,1775281832610,-151.0,0.00011983,2]
[419685458,1775281832619,-38527.46,0.0001199,2]
[419685459,1775281832628,-539.0386,0.00012461,2]
[419685460,1775281832638,-2000.0,0.00012745,2]
[419685461,1775281832647,-150.0,0.00012758,2]
[419685462,1775281832656,-783.4,0.00012804,2]
[419685463,1775281832666,-2500.0,0.00012812,2]
[419685464,1775281832675,-250.39751429,0.00012865,2]
[419685465,1775281832685,-685.71695526,0.00012892,2]
[419685466,1775281832694,-424.02894286,0.00012892,2]
[419685467,1775281832703,-1439.1723,0.000129,2]
[419685468,1775281832712,-60105.11,0.00012911,2]
[419685469,1775281832722,-250.0,0.00013,2]
[419685470,1775281832731,-2118.29,0.00013004,2]
[419685471,1775281832740,-502.0,0.00013111,2]
[419685472,1775281832749,-153.64087258,0.00013137,2]
[419685473,1775281832758,-171.56,0.00013668,2]
[419685474,1775281832768,-500.0,0.00013686,2]
[419685475,1775281832777,-169.20499491,0.00013686,2]
[419685476,1775281832786,-500.0,0.00013698,2]
[419685477,1775281832795,-150.0,0.00013699,2]
[419685478,1775281832804,-200.0,0.00013699,2]
[419685479,1775281832813,-2000.0,0.00014161,2]
[419685480,1775281832822,-26303.3713258,0.00014527,2]
[419685481,1775281832831,-3240.0,0.00014595,2]
[419685482,1775281832840,-300.0,0.00015,2]
[419685483,1775281832850,-150.0,0.00015,2]
[419685484,1775281832859,-500.0,0.00015117,2]
[419685485,1775281832869,-10000.0,0.00015205,2]
[419685486,1775281832878,-8610.7390716,0.00015477,2]
[419685487,1775281832888,-2000.0,0.00015577,2]
[419685488,1775281832897,-9897.10217777,0.00015577,2]
[419685489,1775281832906,-225.66028547,0.00015677,2]
[419685490,1775281832915,-500.0,0.00015677,2]
[419685491,1775281832924,-380.23989489,0.00015677,2]
[419685492,1775281832934,-500.0,0.00015677,2]
[419685493,1775281832944,-386.34899085,0.00015677,2]
[419685494,1775281832953,-500.0,0.00015677,2]
[419685495,1775281832962,-500.0,0.00015677,2]
[419685496,1775281832971,-500.0,0.00015677,2]
[419685497,1775281832980,-500.0,0.00015677,2]
[419685498,1775281832989,-500.0,0.00015677,2]
[419685499,1775281832998,-500.0,0.00015677,2]
[419685500,1775281833007,-500.0,0.00015677,2]
[419685501,1775281833016,-500.0,0.00015677,2]
[419685502,1775281833026,-500.0,0.00015677,2]
[419685503,1775281833035,-604.44716574,0.00015677,2]
[419685504,1775281833045,-500.0,0.00015677,2]
[419685505,1775281833054,-500.0,0.00015677,2]
[419685506,1775281833063,-500.0,0.00015677,2]
[419685507,1775281833073,-500.0,0.00015677,2]
[419685508,1775281833082,-500.0,0.00015677,2]
[419685509,1775281833091,-500.0,0.00015677,2]
[419685510,1775281833101,-500.0,0.00015677,2]
[419685511,1775281833110,-500.0,0.00015677,2]
[419685512,1775281833120,-500.0,0.00015677,2]
[419685513,1775281833128,-500.0,0.00015677,2]
[419685514,1775281833138,-500.0,0.00015677,2]
[419685515,1775281833147,-500.0,0.00015677,2]
[419685516,1775281833156,-500.0,0.00015677,2]
[419685517,1775281833165,-500.0,0.00015677,2]
[419685518,1775281833175,-500.0,0.00015677,2]
[419685519,1775281833185,-500.0,0.00015677,2]
[419685520,1775281833195,-500.0,0.00015677,2]
[419685521,1775281833205,-500.0,0.00015677,2]
[419685522,1775281833215,-500.0,0.00015677,2]
[419685523,1775281833224,-500.0,0.00015677,2]
[419685524,1775281833234,-500.0,0.00015677,2]
[419685525,1775281833243,-500.0,0.00015677,2]
[419685526,1775281833253,-500.0,0.00015677,2]
[419685527,1775281833262,-500.0,0.00015677,2]
[419685528,1775281833272,-500.0,0.00015677,2]
[419685529,1775281833281,-214.99791623,0.00015677,2]
[419685530,1775281833291,-500.0,0.00015677,2]
[419685531,1775281833300,-500.0,0.00015677,2]
[419685532,1775281833310,-500.0,0.00015677,2]
[419685533,1775281833320,-500.0,0.00015677,2]
[419685534,1775281833329,-500.0,0.00015677,2]
[419685535,1775281833338,-500.0,0.00015677,2]
[419685536,1775281833348,-500.0,0.00015677,2]
[419685537,1775281833357,-1849.57105975,0.00015677,2]
[419685538,1775281833366,-1849.57105975,0.00015677,2]
[419685539,1775281833376,-1849.57105975,0.00015677,2]
[419685540,1775281833385,-1849.57105975,0.00015677,2]
[419685541,1775281833395,-1849.57105975,0.00015677,2]
[419685542,1775281833404,-1849.57105975,0.00015677,2]
[419685543,1775281833413,-1849.57105975,0.00015677,2]
[419685544,1775281833423,-1849.57105975,0.00015677,2]
[419685545,1775281833432,-1849.57105975,0.00015677,2]
[419685546,1775281833440,-928.22139245,0.00015677,2]
[419685547,1775281833454,-921.3496673,0.00015677,2]
[419685548,1775281833463,-734.53816939,0.00015677,2]
[419685549,1775281833475,-1115.03289036,0.00015677,2]
[419685550,1775281833484,-402.09979671,0.00015677,2]
[419685551,1775281837712,-490.0,0.00011416,2]
[419685552,1775281837819,-336.0,0.00011416,2]
[419685553,1775281837829,-218.0,0.00011439,2]
[419685554,1775281837838,-5670.59794478,0.00015899,2]
[419685555,1775281837914,-1071.77822041,0.00015899,2]
[419685556,1775281837923,-345.425,0.00015901,2]
[419685557,1775281837932,-175.32,0.00016,2]
[419685558,1775281837943,-1253.53446813,0.00016001,2]
[419685559,1775281838043,-616.90145307,0.00016001,2]
[419685560,1775281838089,-129.5640788,0.00016001,2]
[419685561,1775281838098,-500.0,0.00016539,2]
[419685562,1775281838108,-500.0,0.00016539,2]
[419685563,1775281838119,-3283.41717271,0.00016539,2]
[419685564,1775281838128,-500.0,0.00016539,2]
[419685565,1775281838139,-500.0,0.00016539,2]
[419685566,1775281838148,-500.0,0.00016539,2]
[419685567,1775281838157,-500.0,0.00016539,2]
[419685568,1775281838167,-250.0,0.00016539,2]
[419685569,1775281838177,-500.0,0.00016539,2]
[419685570,1775281838187,-250.0,0.00016539,2]
[419685571,1775281838196,-500.0,0.00016539,2]
[419685572,1775281838205,-355.75741681,0.00016539,2]
[419685573,1775281838214,-500.0,0.00016539,2]
[419685574,1775281838224,-500.0,0.00016539,2]
[419685575,1775281838233,-500.0,0.00016539,2]
[419685576,1775281838242,-500.0,0.00016539,2]
[419685577,1775281838251,-500.0,0.00016539,2]
[419685579,1775281838261,-500.0,0.00016539,2]
[419685581,1775281838271,-500.0,0.00016539,2]
[419685583,1775281838280,-500.0,0.00016539,2]
[419685585,1775281838290,-500.0,0.00016539,2]
[419685587,1775281838299,-500.0,0.00016539,2]
[419685589,1775281838308,-500.0,0.00016539,2]
[419685590,1775281838319,-500.0,0.00016539,2]
[419685591,1775281838328,-151.0,0.00016539,2]
[419685592,1775281838337,-500.0,0.00016539,2]
[419685593,1775281838347,-500.0,0.00016539,2]
[419685594,1775281838357,-500.0,0.00016539,2]
[419685596,1775281838367,-181.0801015,0.00016539,2]
[419685598,1775281838376,-500.0,0.00016594,2]
[419685600,1775281838386,-151.0,0.00016594,2]
[419685602,1775281838396,-500.0,0.00016649,2]
[419685604,1775281838405,-151.0,0.00016649,2]
[419685606,1775281838415,-500.0,0.00016704,2]
[419685608,1775281838424,-151.0,0.00016704,2]
[419685610,1775281838433,-500.0,0.00016759,2]
[419685612,1775281838442,-151.0,0.00016759,2]
[419685614,1775281838451,-500.0,0.00016814,2]
[419685616,1775281838460,-151.0,0.00016814,2]
[419685618,1775281838469,-500.0,0.00016869,2]
[419685620,1775281838478,-151.0,0.00016869,2]
[419685622,1775281838488,-2024.13,0.00016922,2]
[419685623,1775281838497,-500.0,0.00016924,2]
[419685626,1775281838506,-151.0,0.00016924,2]
[419685628,1775281838515,-500.0,0.00016979,2]
[419685629,1775281838524,-151.0,0.00016979,2]
[419685630,1775281838533,-2000.0,0.00016993,2]
[419685631,1775281838542,-350.0,0.00017,2]
[419685632,1775281838551,-500.0,0.00017034,2]
[419685633,1775281838561,-151.0,0.00017034,2]
[419685634,1775281838570,-500.0,0.00017089,2]
[419685635,1775281838579,-151.0,0.00017089,2]
[419685636,1775281838588,-1315.23837317,0.00017146,2]
[419685637,1775281838680,-2011.57989667,0.00017146,2]
[419685638,1775281838696,-6888.41131139,0.00017146,2]
[419685639,1775281838707,-3015.00009,0.00017146,2]
[419685646,1775281839934,-689.72524371,0.00017146,2]
[419685647,1775281840094,-12383.41641086,0.00017146,2]
[419685648,1775281840104,-4800.23482431,0.00017781,2]
[419685649,1775281840626,-3994.81361231,0.00017781,2]
[419685650,1775281840637,-669.878833,0.00017781,2]
[419685651,1775281840648,-432.17490809,0.00017781,2]
[419685652,1775281840658,-81.74948829,0.00017889,6]
[419685653,1775281840781,-420.25051171,0.00017889,6]
[419685654,1775281840790,-500.0,0.0001857,2]
[419685655,1775281840800,-7606.78,0.00018571,2]
[419685656,1775281840810,-8610.73907153,0.00018575,2]
[419685657,1775281840819,-626.14,0.00019481,2]
[419685658,1775281840828,-1346.0,0.00019481,2]
[419685659,1775281840837,-1050.137,0.00019481,2]
[419685660,1775281840847,-3521.0,0.00019481,2]
[419685661,1775281840855,-420.887,0.00019481,2]
[419685662,1775281840865,-3768.0,0.00019481,2]
[419685663,1775281840875,-6058.18703047,0.00019766,2]
[419685664,1775281840886,-875.90074145,0.00019766,2]
[419685677,1775281845670,-160.72,0.0001537,2]
[419685678,1775281845680,-476.83999999,0.00019371,2]
[419685679,1775281845933,-332.99648357,0.00019371,2]
[419685680,1775281845945,-265.68995067,0.00019371,2]
[419685681,1775281845955,-1819.96515607,0.00019481,2]
[419685682,1775281845988,-4199.03484393,0.00019481,2]
[419685683,1775281845998,-710.84957488,0.00019766,2]
[419685684,1775281846361,-18.90408659,0.00019766,2]
[419686047,1775281875695,328.5859,9.524e-05,2]
[419686052,1775282857884,10000.01,8e-05,2]
[419686053,1775282857909,10000.01,8e-05,2]
[419686054,1775282857931,3735.44788944,8e-05,2]
[419686057,1775282924778,205.0,9.8e-05,2]
[419686069,1775282963134,-261.61695451,0.000101,2]
[419686070,1775282963154,-3900.99495752,0.00011,2]
[419686071,1775282968103,-1810.27027825,0.00011,2]
[419686072,1775282968125,-300.0,0.0001111,2]
[419686073,1775282968148,-250.0,0.00011123,2]
[419686074,1775282968169,-600.0,0.00011247,2]
[419686075,1775282968191,-250.0,0.00011329,2]
[419686076,1775282968214,-300.0,0.00011413,2]
[419686077,1775282968236,-300.0,0.00011413,2]
[419686078,1775282968258,-600.0,0.00011414,2]
[419686079,1775282968281,-600.0,0.00011414,2]
[419686080,1775282968303,-600.0,0.00011414,2]
[419686081,1775282968326,-150.0,0.00011493,2]
[419686082,1775282968348,-6656.4369,0.00011493,2]
[419686083,1775282968372,-13254.55721369,0.00011494,2]
[419686085,1775282990310,394.04557739,7.888e-05,2]
[419686125,1775283032861,-1977.52447804,0.0001,2]
[419686126,1775283032871,-250.0,0.0001035,2]
[419686127,1775283032880,-270.21654219,0.000107,2]
[419686128,1775283032888,-1212.25897979,0.000107,2]
[419686129,1775283032900,-400.0,0.000107,2]
[419686130,1775283032911,-816.11829527,0.000107,2]
[419686131,1775283032922,-9624.37731266,0.000107,2]
[419686132,1775283032933,-875.2214,0.000107,2]
[419686133,1775283032948,-1565.63480144,0.000107,2]
[419686134,1775283032960,-533.12361376,0.000107,2]
[419686135,1775283033028,-3153.1950966,0.000107,2]
[419686136,1775283033039,-3938.67971,0.000107,2]
[419686137,1775283033050,-436.53693162,0.000107,2]
[419686138,1775283033106,-784.80151804,0.000107,2]
[419686139,1775283033117,-703.72702952,0.000107,2]
[419686140,1775283033128,-6368.32208559,0.000107,2]
[419686141,1775283033140,-309.84633915,0.000107,2]
[419686142,1775283033151,-258.87161287,0.000107,2]
[419686143,1775283037909,-410.175902,0.000107,2]
[419686144,1775283038173,-329.41450031,0.000107,2]
[419686145,1775283038187,-629265.81375704,0.000107,2]
[419686146,1775283038198,-600.0,0.00011,2]
[419686147,1775283038211,-250.0,0.00011,2]
[419686148,1775283038221,-600.0,0.00011224,2]
[419686150,1775283038231,-600.0,0.00011224,2]
[419686152,1775283038241,-600.0,0.00011224,2]
[419686154,1775283038251,-300.0,0.00011493,2]
[419686156,1775283038260,-8039.53354385,0.00011494,2]